[Event "BLR-ch 1st Stage Men 2020"]
[Site "Minsk"]
[Date "2020.02.01"]
[Round "3.1"]
[White "Teterev, Vitaly"]
[Black "Siniauski, Artsiom"]
[Result "1/2-1/2"]
[ECO "D78"]
[WhiteElo "2476"]
[BlackElo "2265"]
[Annotator "ChessBase"]
[PlyCount "110"]
[EventDate "2020.02.01"]
[EventType "swiss"]
[EventCountry "BLR"]
[SourceTitle "playchess.com"]
[Source "ChessBase"]
[SourceQuality "1"]
[TimeControl "40/5400+30:1800+30"]

1. Nf3 {[%emt 0:00:00]} Nf6 {[%emt 0:00:00]} 2. g3 {[%emt 0:00:00]} g6 {[%emt 0:00:00]} 3. Bg2 {[%emt 0:00:00]} Bg7 {[%emt 0:00:00]} 4. d4 {[%emt 0:00:28]} d5 {[%emt 0:01:06]} 5. c4 {[%emt 0:00:24]} c6 {[%emt 0:00:17]} 6. Qb3 {[%emt 0:00:56]} O-O {[%emt 0:00:46]} 7. O-O {[%emt 0:00:21]} Qb6 {[%emt 0:00:11]} 8. Nc3 {[%emt 0:00:27]} Rd8 {[%emt 0:00:22]} 9. Rd1 {[%emt 0:01:32]} Bf5 {[%emt 0:01:06]} 10. Ne1 {[%emt 0:01:52]} Be6 {[%emt 0:01:00]} 11. c5 {[%emt 0:01:32]} Qxb3 {[%emt 0:00:34]} 12. axb3 {[%emt 0:00:06]} Na6 {[%emt 0:01:37]} 13. Ra4 {[%emt 0:07:08]} Ne4 {[%emt 0:11:00]} 14. f3 {[%emt 0:09:22]} Nexc5 {[%emt 0:04:46]} 15. dxc5 {[%emt 0:00:37]} d4 {[%emt 0:00:15]} 16. Ne4 {[%emt 0:07:04]} Bxb3 {[%emt 0:00:23]} 17. Rxa6 {[%emt 0:00:20]} Bxd1 {[%emt 0:01:00]} 18. Ra3 {[%emt 0:02:19]} Bxe2 {[%emt 0:02:21]} 19. Nd3 {[%emt 0:02:22]} Bxd3 {[%emt 0:03:35]} 20. Rxd3 {[%emt 0:00:01]} Rd5 {[%emt 0:00:24]} 21. b4 {[%emt 0:02:16]} a5 {[%emt 0:10:28]} 22. Ra3 {[%emt 0:00:48]} Ra6 {[%emt 0:00:31]} 23. bxa5 {[%emt 0:06:35]} f5 {[%emt 0:01:39]} 24. Nf2 {[%emt 0:00:15]} Rxc5 {[%emt 0:00:37]} 25. Bd2 {[%emt 0:00:05]} Rc2 {[%emt 0:02:00]} 26. Be1 {[%emt 0:00:28]} e5 {[%emt 0:04:52]} 27. Bf1 {[%emt 0:11:15]} Ra7 {[%emt 0:03:01]} 28. Ra1 {[%emt 0:02:56]} Bh6 {[%emt 0:05:22]} 29. Bd3 {[%emt 0:05:39]} Rc1 {[%emt 0:04:01]} 30. Rxc1 {[%emt 0:00:07]} Bxc1 {[%emt 0:00:04]} 31. Bc4+ {[%emt 0:00:10]} Kg7 {[%emt 0:00:33]} 32. Nd3 {[%emt 0:00:45]} Be3+ {[%emt 0:00:17]} 33. Kg2 {[%emt 0:02:01]} Kf6 {[%emt 0:14:39]} 34. Nc5 {[%emt 0:01:05]} d3 {[%emt 0:02:00]} 35. Nxd3 {[%emt 0:02:29]} Bd4 {[%emt 0:00:18]} 36. h4 {[%emt 0:05:43]} h6 {[%emt 0:04:09]} 37. g4 {[%emt 0:05:19]} e4 {[%emt 0:03:35]} 38. fxe4 {[%emt 0:01:59]} fxe4 {[%emt 0:00:12]} 39. Nf4 {[%emt 0:00:59]} Be5 {[%emt 0:01:56]} 40. Ne6 {[%emt 0:00:00]} h5 {[%emt 0:00:00]} 41. g5+ {[%emt 0:07:05]} Ke7 {[%emt 0:07:34]} 42. Kf2 {[%emt 0:00:44]} Bd6 {[%emt 0:11:35]} 43. Ke2 {[%emt 0:14:36]} Ra8 {[%emt 0:03:00]} 44. Bc3 {[%emt 0:03:57]} b5 {[%emt 0:07:19]} 45. axb6 {[%emt 0:01:18]} Ra4 {[%emt 0:00:11]} 46. Bb3 {[%emt 0:00:29]} Ra3 {[%emt 0:00:09]} 47. Bf6+ {[%emt 0:00:25]} Kd7 {[%emt 0:00:37]} 48. Nd4 {[%emt 0:00:22]} Ra6 {[%emt 0:11:02]} 49. Bf7 {[%emt 0:06:42]} c5 {[%emt 0:00:52]} 50. Nc2 {[%emt 0:01:37]} Rxb6 {[%emt 0:00:47]} 51. Bxg6 {[%emt 0:10:48]} Bg3 {[%emt 0:00:17]} 52. Ne3 {[%emt 0:03:07]} Bxh4 {[%emt 0:00:52]} 53. Nd5 {[%emt 0:00:23]} Rd6 {[%emt 0:01:11]} 54. Bf7 {[%emt 0:01:01]} Rxf6 {[%emt 0:02:22]} 55. gxf6 {[%emt 0:01:17]} Bxf6 {[%emt 0:00:07]} 1/2-1/2

[Event "BLR-ch 1st Stage Men 2020"]
[Site "Minsk"]
[Date "2020.02.01"]
[Round "3.2"]
[White "Galkin, Gleb"]
[Black "Zarubitski, Viachaslau"]
[Result "0-1"]
[ECO "E16"]
[WhiteElo "2190"]
[BlackElo "2451"]
[Annotator "ChessBase"]
[PlyCount "164"]
[EventDate "2020.02.01"]
[EventType "swiss"]
[EventCountry "BLR"]
[SourceTitle "playchess.com"]
[Source "ChessBase"]
[SourceQuality "1"]
[TimeControl "40/5400+30:1800+30"]

1. d4 {[%emt 0:00:00]} Nf6 {[%emt 0:00:20]} 2. c4 {[%emt 0:00:00]} e6 {[%emt 0:00:07]} 3. Nf3 {[%emt 0:00:00]} Bb4+ {[%emt 0:00:06]} 4. Bd2 {[%emt 0:00:03]} c5 {[%emt 0:00:04]} 5. Bxb4 {[%emt 0:00:07]} cxb4 {[%emt 0:00:05]} 6. g3 {[%emt 0:00:11]} b6 {[%emt 0:00:08]} 7. Bg2 {[%emt 0:00:11]} Bb7 {[%emt 0:00:03]} 8. O-O {[%emt 0:00:09]} O-O {[%emt 0:00:39]} 9. a3 {[%emt 0:01:07]} bxa3 {[%emt 0:00:06]} 10. Rxa3 {[%emt 0:00:13]} a5 {[%emt 0:00:07]} 11. Nc3 {[%emt 0:01:44]} Na6 {[%emt 0:01:21]} 12. d5 {[%emt 0:03:39]} Rc8 {[%emt 0:06:27]} 13. Ne5 {[%emt 0:04:34]} exd5 {[%emt 0:28:43]} 14. Nxd5 {[%emt 0:01:24]} Nxd5 {[%emt 0:01:48]} 15. Bxd5 {[%emt 0:12:00]} Bxd5 {[%emt 0:00:32]} 16. Qxd5 {[%emt 0:05:17]} Rc5 {[%emt 0:00:32]} 17. Qd4 {[%emt 0:02:23]} Qf6 {[%emt 0:00:58]} 18. Re3 {[%emt 0:11:38]} d6 {[%emt 0:01:36]} 19. Nf3 {[%emt 0:00:05]} Qxd4 {[%emt 0:00:09]} 20. Nxd4 {[%emt 0:00:06]} Rxc4 {[%emt 0:00:07]} 21. Nf5 {[%emt 0:00:26]} Rb4 {[%emt 0:07:13]} 22. Rb1 {[%emt 0:01:20]} g6 {[%emt 0:01:12]} 23. Nxd6 {[%emt 0:02:46]} Rd8 {[%emt 0:00:19]} 24. Ne4 {[%emt 0:02:19]} Kg7 {[%emt 0:00:28]} 25. f3 {[%emt 0:02:02]} h6 {[%emt 0:15:29]} 26. Kf1 {[%emt 0:04:47]} f5 {[%emt 0:05:40]} 27. Nf2 {[%emt 0:02:23]} Nc5 {[%emt 0:00:06]} 28. Ke1 {[%emt 0:08:24]} Kf6 {[%emt 0:04:00]} 29. Rc3 {[%emt 0:01:08]} Re8 {[%emt 0:13:18]} 30. Nd3 {[%emt 0:03:39]} Nxd3+ {[%emt 0:00:26]} 31. Rxd3 {[%emt 0:00:04]} Re5 {[%emt 0:01:41]} 32. Kd1 {[%emt 0:06:49]} Reb5 {[%emt 0:03:53]} 33. Rc1 {[%emt 0:03:55]} Re5 {[%emt 0:04:25]} 34. Rc6+ {[%emt 0:03:16]} Re6 {[%emt 0:00:08]} 35. Rxe6+ {[%emt 0:00:22]} Kxe6 {[%emt 0:00:01]} 36. Kc2 {[%emt 0:00:48]} Rc4+ {[%emt 0:01:30]} 37. Kd2 {[%emt 0:01:00]} Rc5 {[%emt 0:00:48]} 38. Re3+ {[%emt 0:05:00]} Re5 {[%emt 0:00:10]} 39. Rc3 {[%emt 0:04:02]} Kd7 {[%emt 0:00:14]} 40. Rc4 {[%emt 0:00:00]} Rb5 {[%emt 0:00:00]} 41. Kc3 {[%emt 0:05:03]} Kd6 {[%emt 0:02:51]} 42. Rd4+ {[%emt 0:00:56]} Kc6 {[%emt 0:00:31]} 43. e4 {[%emt 0:02:16]} Rc5+ {[%emt 0:03:01]} 44. Kd2 {[%emt 0:02:28]} fxe4 {[%emt 0:00:38]} 45. Rxe4 {[%emt 0:00:14]} Kd5 {[%emt 0:03:37]} 46. Rh4 {[%emt 0:02:03]} h5 {[%emt 0:00:30]} 47. Rf4 {[%emt 0:01:16]} Rc4 {[%emt 0:01:45]} 48. Rf8 {[%emt 0:01:04]} Rc6 {[%emt 0:01:10]} 49. Kd3 {[%emt 0:03:41]} Kc5 {[%emt 0:01:35]} 50. Rf4 {[%emt 0:00:30]} Rd6+ {[%emt 0:00:36]} 51. Kc2 {[%emt 0:02:16]} b5 {[%emt 0:00:16]} 52. h4 {[%emt 0:03:01]} Re6 {[%emt 0:03:06]} 53. b3 {[%emt 0:06:35]} Re2+ {[%emt 0:00:45]} 54. Kc1 {[%emt 0:00:56]} Rh2 {[%emt 0:01:15]} 55. Re4 {[%emt 0:05:30]} Rh3 {[%emt 0:01:33]} 56. Re5+ {[%emt 0:00:30]} Kb4 {[%emt 0:00:00]} 57. Rg5 {[%emt 0:00:16]} Rh1+ {[%emt 0:03:03]} 58. Kb2 {[%emt 0:03:58]} Rh2+ {[%emt 0:00:06]} 59. Kb1 {[%emt 0:00:47]} Rf2 {[%emt 0:00:35]} 60. g4 {[%emt 0:00:49]} Rxf3 {[%emt 0:00:21]} 61. gxh5 {[%emt 0:07:00]} gxh5 {[%emt 0:00:16]} 62. Ka2 {[%emt 0:00:00]} Rf2+ {[%emt 0:11:24]} 63. Kb1 {[%emt 0:00:00]} Rf4 {[%emt 0:04:57]} 64. Rxh5 {[%emt 0:00:00]} Rf1+ {[%emt 0:00:03]} 65. Kb2 {[%emt 0:00:00]} Rf2+ {[%emt 0:00:28]} 66. Kb1 {[%emt 0:00:00]} Rf3 {[%emt 0:00:04]} 67. Ka2 {[%emt 0:00:00]} Rh3 {[%emt 0:00:05]} 68. Rg5 {[%emt 0:00:00]} Rh2+ {[%emt 0:00:04]} 69. Kb1 {[%emt 0:00:00]} Rh1+ {[%emt 0:00:02]} 70. Kb2 {[%emt 0:00:00]} Rh2+ {[%emt 0:00:04]} 71. Kb1 {[%emt 0:00:00]} Rxh4 {[%emt 0:00:05]} 72. Kb2 {[%emt 0:00:00]} Rh2+ {[%emt 0:00:05]} 73. Kb1 {[%emt 0:00:00]} Rd2 {[%emt 0:01:21]} 74. Rh5 {[%emt 0:00:00]} Rg2 {[%emt 0:00:13]} 75. Rf5 {[%emt 0:00:00]} Rg3 {[%emt 0:00:17]} 76. Ka2 {[%emt 0:00:00]} Rc3 {[%emt 0:00:57]} 77. Rh5 {[%emt 0:00:24]} Rc2+ {[%emt 0:00:31]} 78. Kb1 {[%emt 0:00:09]} Rc5 {[%emt 0:00:08]} 79. Rxc5 {[%emt 0:01:53]} Kxc5 {[%emt 0:00:04]} 80. Kc1 {[%emt 0:05:11]} Kd4 {[%emt 0:00:38]} 81. Kc2 {[%emt 0:00:40]} Ke3 {[%emt 0:00:36]} 82. Kc3 {[%emt 0:00:42]} b4+ {[%emt 0:00:25]} 0-1

[Event "BLR-ch 1st Stage Men 2020"]
[Site "Minsk"]
[Date "2020.02.01"]
[Round "3.3"]
[White "Meribanov, Vitaly"]
[Black "Strybuk, Artsiom I"]
[Result "1/2-1/2"]
[ECO "D96"]
[WhiteElo "2417"]
[BlackElo "2166"]
[Annotator "NA"]
[PlyCount "60"]
[EventDate "2020.02.01"]
[EventType "swiss"]
[EventCountry "BLR"]
[SourceTitle "playchess.com"]
[Source "ChessBase"]
[SourceQuality "1"]
[TimeControl "40/5400+30:1800+30"]

1. d4 {[%emt 0:00:00]} Nf6 {[%emt 0:00:00]} 2. c4 {[%emt 0:00:00]} g6 {[%emt 0:01:26]} 3. Nf3 {[%emt 0:00:00]} Bg7 {[%emt 0:00:25]} 4. Nc3 {[%emt 0:00:00]} d5 {[%emt 0:00:16]} 5. Qb3 {[%emt 0:00:02]} e6 {[%emt 0:00:05]} 6. Bf4 {[%emt 0:02:17]} O-O {[%emt 0:05:12]} 7. e3 {[%emt 0:00:26]} b6 {[%emt 0:05:35]} 8. cxd5 {[%emt 0:06:50]} exd5 {[%emt 0:00:54]} 9. Rc1 {[%emt 0:00:23]} c5 {[%emt 0:08:41]} 10. dxc5 {[%emt 0:01:53]} bxc5 {[%emt 0:11:03]} 11. Bxb8 {[%emt 0:01:54]} d4 {[%emt 0:02:45]} 12. Be5 {[%emt 0:06:04]} dxc3 {[%emt 0:09:51]} 13. bxc3 {[%emt 0:07:52]} Bg4 {[%emt 0:03:49]} 14. Be2 {[%emt 0:06:11]} Ne4 {[%emt 0:07:08]} 15. Bxg7 {[%emt 0:16:26]} Bxf3 {[%emt 0:05:51]} 16. Qc2 {[%emt 0:28:46]} Bxg2 {[%emt 0:07:45]} 17. Rg1 {[%emt 0:00:03]} Kxg7 {[%emt 0:00:38]} 18. Rxg2 {[%emt 0:00:02]} Nf6 {[%emt 0:02:21]} 19. h4 {[%emt 0:05:02]} Qd5 {[%emt 0:02:36]} 20. Rg1 {[%emt 0:00:05]} Rad8 {[%emt 0:03:14]} 21. c4 {[%emt 0:02:36]} Qe5 {[%emt 0:00:47]} 22. Bf3 {[%emt 0:03:42]} Rfe8 {[%emt 0:03:22]} 23. Rg5 {[%emt 0:02:42]} Qf4 {[%emt 0:04:17]} 24. Ke2 {[%emt 0:03:04]} Qxh4 {[%emt 0:01:23]} 25. Rxc5 {[%emt 0:00:04]} Ng4 {[%emt 0:05:03]} 26. Qc3+ {[%emt 0:00:02]} Kg8 {[%emt 0:00:33]} 27. Rf1 {[%emt 0:03:01]} Rxe3+ {[%emt 0:03:35]} 28. fxe3 {[%emt 0:00:05]} Qh2+ {[%emt 0:00:05]} 29. Ke1 {[%emt 0:00:07]} Qg3+ {[%emt 0:00:50]} 30. Ke2 {[%emt 0:00:00]} Qh2+ {[%emt 0:00:09]} 1/2-1/2

[Event "BLR-ch 1st Stage Men 2020"]
[Site "Minsk"]
[Date "2020.02.01"]
[Round "3.4"]
[White "Yezhel, Valiantsin"]
[Black "Terzi, Alexei"]
[Result "1-0"]
[ECO "A59"]
[WhiteElo "2187"]
[BlackElo "2321"]
[Annotator "NA"]
[PlyCount "99"]
[EventDate "2020.02.01"]
[EventType "swiss"]
[EventCountry "BLR"]
[SourceTitle "playchess.com"]
[Source "ChessBase"]
[SourceQuality "1"]
[TimeControl "40/5400+30:1800+30"]

1. d4 {[%emt 0:00:00]} Nf6 {[%emt 0:00:00]} 2. c4 {[%emt 0:00:18]} c5 {[%emt 0:00:02]} 3. d5 {[%emt 0:01:14]} b5 {[%emt 0:00:08]} 4. cxb5 {[%emt 0:01:32]} a6 {[%emt 0:00:05]} 5. bxa6 {[%emt 0:00:32]} g6 {[%emt 0:00:13]} 6. Nc3 {[%emt 0:00:14]} Bxa6 {[%emt 0:02:12]} 7. e4 {[%emt 0:01:07]} Bxf1 {[%emt 0:00:06]} 8. Kxf1 {[%emt 0:00:03]} d6 {[%emt 0:00:11]} 9. Nf3 {[%emt 0:00:07]} Bg7 {[%emt 0:00:06]} 10. g3 {[%emt 0:00:03]} O-O {[%emt 0:00:06]} 11. Kg2 {[%emt 0:00:02]} Qb6 {[%emt 0:01:59]} 12. h3 {[%emt 0:13:54]} Nbd7 {[%emt 0:02:03]} 13. Qc2 {[%emt 0:00:16]} Rfb8 {[%emt 0:00:18]} 14. Rb1 {[%emt 0:00:15]} Ne8 {[%emt 0:03:16]} 15. Bg5 {[%emt 0:00:27]} Nc7 {[%emt 0:03:33]} 16. Rhc1 {[%emt 0:09:21]} h6 {[%emt 0:14:14]} 17. Be3 {[%emt 0:02:10]} Qa6 {[%emt 0:08:02]} 18. a4 {[%emt 0:13:48]} Rb4 {[%emt 0:11:29]} 19. Bd2 {[%emt 0:02:01]} Rb6 {[%emt 0:03:54]} 20. b3 {[%emt 0:01:07]} Rab8 {[%emt 0:00:37]} 21. Nd1 {[%emt 0:03:52]} R6b7 {[%emt 0:13:14]} 22. Ne3 {[%emt 0:00:50]} Nb6 {[%emt 0:00:26]} 23. h4 {[%emt 0:05:18]} h5 {[%emt 0:03:17]} 24. g4 {[%emt 0:08:50]} hxg4 {[%emt 0:02:59]} 25. Nxg4 {[%emt 0:00:02]} Ne8 {[%emt 0:05:49]} 26. h5 {[%emt 0:07:39]} gxh5 {[%emt 0:06:17]} 27. Nh6+ {[%emt 0:00:08]} Kf8 {[%emt 0:09:44]} 28. Nf5 {[%emt 0:08:09]} Nf6 {[%emt 0:03:47]} 29. Bc3 {[%emt 0:02:48]} Nbd7 {[%emt 0:03:23]} 30. Qd2 {[%emt 0:01:13]} Rxb3 {[%emt 0:00:44]} 31. Rxb3 {[%emt 0:00:19]} Rxb3 {[%emt 0:00:04]} 32. Qg5 {[%emt 0:00:19]} Qd3 {[%emt 0:00:57]} 33. Qxg7+ {[%emt 0:00:13]} Ke8 {[%emt 0:00:02]} 34. Qh8+ {[%emt 0:06:49]} Nf8 {[%emt 0:00:04]} 35. Nxd6+ {[%emt 0:00:20]} exd6 {[%emt 0:02:48]} 36. Qxf6 {[%emt 0:00:04]} Ng6 {[%emt 0:00:15]} 37. Ng5 {[%emt 0:05:01]} Rb7 {[%emt 0:01:19]} 38. Qxd6 {[%emt 0:01:07]} Qe2 {[%emt 0:00:38]} 39. Qg3 {[%emt 0:01:50]} Rb3 {[%emt 0:00:17]} 40. Kh2 {[%emt 0:00:00]} Qc4 {[%emt 0:00:00]} 41. Qf3 {[%emt 0:03:58]} Rb7 {[%emt 0:01:10]} 42. Rb1 {[%emt 0:02:03]} Qa6 {[%emt 0:06:27]} 43. Rxb7 {[%emt 0:00:32]} Qxb7 {[%emt 0:00:04]} 44. Qf6 {[%emt 0:00:59]} Qc7+ {[%emt 0:00:23]} 45. d6 {[%emt 0:00:22]} Qd7 {[%emt 0:00:05]} 46. a5 {[%emt 0:00:56]} Nf8 {[%emt 0:01:20]} 47. a6 {[%emt 0:00:22]} Ne6 {[%emt 0:00:43]} 48. Qh8+ {[%emt 0:01:48]} Nf8 {[%emt 0:00:05]} 49. Qxf8+ {[%emt 0:00:25]} Kxf8 {[%emt 0:00:06]} 50. Nh7+ {[%emt 0:00:03]} 1-0

[Event "BLR-ch 1st Stage Men 2020"]
[Site "Minsk"]
[Date "2020.02.01"]
[Round "3.5"]
[White "Tsaruk, Maksim"]
[Black "Elkin, Leonid"]
[Result "1-0"]
[ECO "C09"]
[WhiteElo "2316"]
[BlackElo "2031"]
[Annotator "NA"]
[PlyCount "187"]
[EventDate "2020.02.01"]
[EventType "swiss"]
[EventCountry "BLR"]
[SourceTitle "playchess.com"]
[Source "ChessBase"]
[SourceQuality "1"]
[TimeControl "40/5400+30:1800+30"]

1. e4 {[%emt 0:00:00]} e6 {[%emt 0:00:00]} 2. d4 {[%emt 0:00:00]} d5 {[%emt 0:00:00]} 3. Nd2 {[%emt 0:00:00]} c5 {[%emt 0:00:00]} 4. Ngf3 {[%emt 0:01:43]} Nc6 {[%emt 0:00:00]} 5. exd5 {[%emt 0:00:06]} exd5 {[%emt 0:02:49]} 6. Bb5 {[%emt 0:00:05]} Bd6 {[%emt 0:00:18]} 7. dxc5 {[%emt 0:00:09]} Bxc5 {[%emt 0:00:06]} 8. O-O {[%emt 0:00:06]} Nge7 {[%emt 0:00:03]} 9. Nb3 {[%emt 0:00:40]} Bd6 {[%emt 0:00:09]} 10. c3 {[%emt 0:01:36]} O-O {[%emt 0:00:06]} 11. Bd3 {[%emt 0:00:17]} Ng6 {[%emt 0:04:17]} 12. Bg5 {[%emt 0:01:09]} Qc7 {[%emt 0:06:22]} 13. Bxg6 {[%emt 0:05:24]} hxg6 {[%emt 0:00:05]} 14. Qxd5 {[%emt 0:00:15]} Bg4 {[%emt 0:03:15]} 15. Rad1 {[%emt 0:05:37]} Bf4 {[%emt 0:05:53]} 16. Qc4 {[%emt 0:03:39]} Bxg5 {[%emt 0:03:55]} 17. Qxg4 {[%emt 0:00:13]} Bf6 {[%emt 0:00:06]} 18. Rd2 {[%emt 0:25:56]} a5 {[%emt 0:06:40]} 19. a4 {[%emt 0:02:31]} Rfe8 {[%emt 0:00:58]} 20. Rfd1 {[%emt 0:02:56]} Qb6 {[%emt 0:10:54]} 21. Qc4 {[%emt 0:00:28]} Rad8 {[%emt 0:14:48]} 22. Qb5 {[%emt 0:01:55]} Rxd2 {[%emt 0:00:37]} 23. Rxd2 {[%emt 0:12:29]} Qc7 {[%emt 0:00:05]} 24. g3 {[%emt 0:02:50]} Re7 {[%emt 0:02:39]} 25. Kg2 {[%emt 0:00:14]} b6 {[%emt 0:03:16]} 26. Re2 {[%emt 0:03:47]} Rxe2 {[%emt 0:04:42]} 27. Qxe2 {[%emt 0:01:18]} Ne5 {[%emt 0:00:07]} 28. Nxe5 {[%emt 0:02:02]} Bxe5 {[%emt 0:00:05]} 29. Qe4 {[%emt 0:00:08]} Bf6 {[%emt 0:00:29]} 30. Qd5 {[%emt 0:00:13]} Qc8 {[%emt 0:02:08]} 31. Nd2 {[%emt 0:00:17]} Qg4 {[%emt 0:00:57]} 32. Ne4 {[%emt 0:11:25]} Qe2 {[%emt 0:03:56]} 33. b3 {[%emt 0:02:26]} Qc2 {[%emt 0:02:32]} 34. h4 {[%emt 0:00:07]} Be7 {[%emt 0:04:09]} 35. Kf3 {[%emt 0:05:35]} Bf6 {[%emt 0:04:48]} 36. Qb5 {[%emt 0:04:19]} Be7 {[%emt 0:10:48]} 37. Qd5 {[%emt 0:05:46]} Bf6 {[%emt 0:00:22]} 38. Kg2 {[%emt 0:00:27]} Be7 {[%emt 0:01:44]} 39. Qe5 {[%emt 0:00:06]} Bf8 {[%emt 0:00:40]} 40. b4 {[%emt 0:00:00]} axb4 {[%emt 0:00:00]} 41. cxb4 {[%emt 0:01:15]} Bxb4 {[%emt 0:07:31]} 42. Qe8+ {[%emt 0:00:46]} Bf8 {[%emt 0:03:22]} 43. Nd6 {[%emt 0:00:40]} Qb3 {[%emt 0:00:26]} 44. Nc8 {[%emt 0:00:05]} Qd5+ {[%emt 0:02:07]} 45. Kg1 {[%emt 0:02:46]} Qc5 {[%emt 0:00:06]} 46. Qd8 {[%emt 0:00:33]} Kh7 {[%emt 0:00:22]} 47. Nxb6 {[%emt 0:00:30]} Be7 {[%emt 0:00:11]} 48. Qe8 {[%emt 0:02:43]} Bd6 {[%emt 0:05:09]} 49. Nd7 {[%emt 0:06:22]} Qd5 {[%emt 0:00:21]} 50. Nf8+ {[%emt 0:00:39]} Bxf8 {[%emt 0:02:55]} 51. Qxf8 {[%emt 0:00:21]} Qd1+ {[%emt 0:00:24]} 52. Kh2 {[%emt 0:00:05]} Qxa4 {[%emt 0:00:44]} 53. Qxf7 {[%emt 0:00:05]} Qe4 {[%emt 0:00:48]} 54. Qf4 {[%emt 0:01:53]} Qd3 {[%emt 0:00:35]} 55. Qe3 {[%emt 0:00:16]} Qc2 {[%emt 0:00:14]} 56. Kg2 {[%emt 0:00:14]} Qc6+ {[%emt 0:00:28]} 57. Qf3 {[%emt 0:00:10]} Qc2 {[%emt 0:00:18]} 58. Qd5 {[%emt 0:00:28]} Kh8 {[%emt 0:01:18]} 59. Kf3 {[%emt 0:00:52]} Qc3+ {[%emt 0:00:30]} 60. Kg4 {[%emt 0:00:34]} Qc2 {[%emt 0:00:23]} 61. Kf3 {[%emt 0:05:28]} Qc3+ {[%emt 0:00:20]} 62. Ke2 {[%emt 0:00:31]} Qc2+ {[%emt 0:00:18]} 63. Ke3 {[%emt 0:00:21]} Qc1+ {[%emt 0:00:32]} 64. Qd2 {[%emt 0:00:05]} Qc5+ {[%emt 0:00:24]} 65. Qd4 {[%emt 0:00:03]} Qc1+ {[%emt 0:00:05]} 66. Kf3 {[%emt 0:00:08]} Kh7 {[%emt 0:00:18]} 67. Qd3 {[%emt 0:00:17]} Qc6+ {[%emt 0:02:34]} 68. Qe4 {[%emt 0:00:15]} Qf6+ {[%emt 0:00:06]} 69. Kg2 {[%emt 0:00:10]} Kg8 {[%emt 0:00:19]} 70. f3 {[%emt 0:00:36]} Qb6 {[%emt 0:00:24]} 71. Kh3 {[%emt 0:00:16]} Kf7 {[%emt 0:00:43]} 72. Qd5+ {[%emt 0:00:08]} Kf8 {[%emt 0:00:08]} 73. Kg4 {[%emt 0:00:08]} Qf6 {[%emt 0:00:42]} 74. Qa8+ {[%emt 0:00:25]} Kf7 {[%emt 0:00:08]} 75. Qa2+ {[%emt 0:00:02]} Kf8 {[%emt 0:00:07]} 76. Qd5 {[%emt 0:00:04]} Qb2 {[%emt 0:00:20]} 77. Qe6 {[%emt 0:00:22]} Qd4+ {[%emt 0:03:19]} 78. Kg5 {[%emt 0:01:34]} Qf2 {[%emt 0:00:50]} 79. Qc8+ {[%emt 0:00:33]} Kf7 {[%emt 0:00:04]} 80. Qc4+ {[%emt 0:00:06]} Kf8 {[%emt 0:00:09]} 81. Qf4+ {[%emt 0:00:05]} Kg8 {[%emt 0:00:30]} 82. Kxg6 {[%emt 0:00:07]} Qb6+ {[%emt 0:00:20]} 83. Kg5 {[%emt 0:01:01]} Qd8+ {[%emt 0:01:16]} 84. Kg4 {[%emt 0:00:13]} Qc8+ {[%emt 0:00:21]} 85. Qf5 {[%emt 0:00:16]} Qc4+ {[%emt 0:00:05]} 86. Kg5 {[%emt 0:00:42]} Qc1+ {[%emt 0:01:22]} 87. Kh5 {[%emt 0:02:02]} Kh8 {[%emt 0:00:31]} 88. Qe6 {[%emt 0:03:00]} Qc7 {[%emt 0:01:27]} 89. f4 {[%emt 0:04:57]} Qc2 {[%emt 0:01:05]} 90. f5 {[%emt 0:00:38]} Qd1+ {[%emt 0:01:11]} 91. g4 {[%emt 0:00:08]} Qd2 {[%emt 0:00:27]} 92. Kg6 {[%emt 0:01:16]} Qh6+ {[%emt 0:01:15]} 93. Kf7 {[%emt 0:00:05]} Qg6+ {[%emt 0:00:36]} 94. Kf8 {[%emt 0:00:07]} 1-0

[Event "BLR-ch 1st Stage Men 2020"]
[Site "Minsk"]
[Date "2020.02.01"]
[Round "3.6"]
[White "Leinov, Roman"]
[Black "Maiorov, Nikita"]
[Result "1/2-1/2"]
[ECO "E17"]
[WhiteElo "2168"]
[BlackElo "2519"]
[Annotator "RC"]
[PlyCount "62"]
[EventDate "2020.02.01"]
[EventType "swiss"]
[EventCountry "BLR"]
[SourceTitle "playchess.com"]
[Source "ChessBase"]
[SourceQuality "1"]
[TimeControl "40/5400+30:1800+30"]

1. d4 {[%emt 0:00:00]} Nf6 {[%emt 0:07:09]} 2. c4 {[%emt 0:00:00]} e6 {[%emt 0:00:14]} 3. g3 {[%emt 0:00:00]} d5 {[%emt 0:00:21]} 4. Nf3 {[%emt 0:00:25]} Be7 {[%emt 0:00:28]} 5. Bg2 {[%emt 0:00:53]} O-O {[%emt 0:00:16]} 6. O-O {[%emt 0:00:36]} b6 {[%emt 0:00:12]} 7. cxd5 {[%emt 0:00:49]} exd5 {[%emt 0:00:15]} 8. Nc3 {[%emt 0:00:30]} Bb7 {[%emt 0:00:05]} 9. b3 {[%emt 0:00:39]} Ne4 {[%emt 0:04:38]} 10. Bb2 {[%emt 0:01:35]} Nxc3 {[%emt 0:03:25]} 11. Bxc3 {[%emt 0:00:12]} Nd7 {[%emt 0:00:04]} 12. Qc2 {[%emt 0:06:09]} Bd6 {[%emt 0:02:37]} 13. Ne5 {[%emt 0:08:53]} Nf6 {[%emt 0:02:14]} 14. Bb2 {[%emt 0:01:27]} Qe8 {[%emt 0:01:37]} 15. Rac1 {[%emt 0:02:30]} c6 {[%emt 0:01:00]} 16. Bh3 {[%emt 0:07:56]} c5 {[%emt 0:03:14]} 17. Ng4 {[%emt 0:08:01]} Nxg4 {[%emt 0:17:38]} 18. Bxg4 {[%emt 0:00:28]} Qe7 {[%emt 0:00:43]} 19. Rfd1 {[%emt 0:05:15]} Rfd8 {[%emt 0:07:24]} 20. dxc5 {[%emt 0:06:53]} Bxc5 {[%emt 0:05:19]} 21. Bd4 {[%emt 0:06:42]} Bd6 {[%emt 0:04:01]} 22. Qc3 {[%emt 0:04:14]} Qg5 {[%emt 0:01:54]} 23. Bf3 {[%emt 0:04:06]} Ba3 {[%emt 0:02:39]} 24. Rc2 {[%emt 0:07:42]} Qg6 {[%emt 0:06:25]} 25. Qd3 {[%emt 0:00:55]} Rac8 {[%emt 0:00:26]} 26. Rxc8 {[%emt 0:00:38]} Rxc8 {[%emt 0:00:08]} 27. Be3 {[%emt 0:04:18]} Kf8 {[%emt 0:19:31]} 28. Qxg6 {[%emt 0:05:46]} hxg6 {[%emt 0:00:06]} 29. Bf4 {[%emt 0:00:30]} Rc2 {[%emt 0:03:19]} 30. Rd2 {[%emt 0:00:36]} Rxd2 {[%emt 0:00:47]} 31. Bxd2 {[%emt 0:00:02]} Ke7 {[%emt 0:00:37]} 1/2-1/2